Cogmind - Beta 16 @@@ ROGUE MODE // 2025.11.15 @ 23:30:15 Player: jes Result: Destroyed by B-75 Beast with Heavy Plasma Cannon Performance ------------- Evolutions (3) 1500 Regions Visited (8) 1600 Robots Destroyed (150) 750 Value Destroyed (5686) 5686 Prototype IDs (4) 80 Alien Tech Used (0) 0 Bonus (1713) 1713 TOTAL SCORE: 11329 Bonus ------- High Alert Combat Kills 978 Follower Combat Kills 122 Entered Garrisons 200 Used RIF Installer 500 Friendly Fire -87 Cogmind --------- Core Integrity 0/700 Matter 244/300 Energy 350/350 System Corruption 7% Temperature Cool (12) Movement Rolling (115) Ox1 Location -7/Lower Caves Parts ------- > --- POWER (2) -------- Light Nuclear Core Improved Deuterium Engine > --- PROPULSION (4) --- Aluminum Leg Carbon-fiber Leg Compact Wheel Compact Wheel > --- UTILITY (5) ------ Small Storage Unit Medium Storage Unit Transmission Jammer Improved Medium Armor Plating Hacking Suite > --- WEAPON (2) ------- Molecular Deconstructor > --- INVENTORY (10) --- Micro Nuclear Core Gravmag System High-capacity Matter Pod (200) Advanced ECM Suite System Shield Minigun Minigun Minigun High-powered Shotgun Precision Assault Rifle Peak State ------------ > --- POWER ------------ Light Nuclear Core Improved Deuterium Engine > --- PROPULSION ------- Aluminum Leg Carbon-fiber Leg Compact Wheel Compact Wheel > --- UTILITY ---------- Small Storage Unit Medium Storage Unit Transmission Jammer Improved Medium Armor Plating Hacking Suite > --- WEAPON ----------- Molecular Deconstructor > --- INVENTORY -------- Micro Nuclear Core Gravmag System High-capacity Matter Pod Advanced ECM Suite System Shield Minigun Minigun Minigun High-powered Shotgun Precision Assault Rifle [Rating: 47] Favorites ----------- Power Improved Deuterium Engine Engine Improved Deuterium Engine Power Core Nuclear Core Propulsion Light Treads Treads Light Treads Leg Aluminum Leg Wheel Compact Wheel Hover Unit Gravmag System Utility Medium Storage Unit Device ECM Suite Storage Medium Storage Unit Processor Advanced Targeting Computer Hackware Hacking Suite Protection Improved Medium Armor Plating Weapon Gauss Rifle Energy Gun Shock Rifle Ballistic Gun Gauss Rifle Launcher Grenade Launcher Special Weapon Molecular Deconstructor Impact Weapon Hammer Slashing Weapon Ripper Piercing Weapon Spear Build | -11 -10 -10 -10 -8 -8 -8 -7 -7 ------- Run | Yrd Mat Min Sub Mat Gar Mat Fac Low Slots Evolved 6 | . . . . 4 . . 2 . Power 1 | . . . . . . . 1 . Propulsion 2 | . . . . 2 . . . . Utility 3 | . . . . 2 . . 1 . Weapon . | . . . . . . . . . Parts Attached 147 | 7 . 1 5 16 38 12 66 2 Power 26 | 2 . . . 2 5 3 14 . Engine 12 | 2 . . . . 4 2 4 . Core 14 | . . . . 2 1 1 10 . Reactor . | . . . . . . . . . Propulsion 56 | 2 . . 2 5 17 5 25 . Treads 31 | . . . 2 4 13 5 7 . Leg 19 | 2 . . . 1 2 . 14 . Wheel 2 | . . . . . . . 2 . Hover 4 | . . . . . 2 . 2 . Flight . | . . . . . . . . . Utility 28 | 1 . 1 . 5 5 3 12 1 Device 15 | . . 1 . 2 4 . 8 . Storage 4 | 1 . . . 1 . 1 . 1 Processor 5 | . . . . 1 1 1 2 . Hackware 3 | . . . . 1 . 1 1 . Protection 1 | . . . . . . . 1 . Artifact . | . . . . . . . . . Weapon 37 | 2 . . 3 4 11 1 15 1 Energy Gun 7 | . . . . 2 4 . 1 . Energy Cannon . | . . . . . . . . . Ballistic Gun 23 | 2 . . . 2 6 1 12 . Ballistic Cannon . | . . . . . . . . . Launcher 2 | . . . 2 . . . . . Special Weapon 1 | . . . . . . . . 1 Impact Weapon 1 | . . . . . 1 . . . Slashing Weapon 2 | . . . 1 . . . 1 . Piercing Weapon 1 | . . . . . . . 1 . Special Melee Weapon . | . . . . . . . . . Unidentified Prototypes 4 | . . . . . . 2 1 1 Parts Lost 30 | . . . . . 10 1 18 1 Power 3 | . . . . . . . 3 . Propulsion 16 | . . . . . 7 1 8 . Utility 5 | . . . . . 1 . 3 1 Weapon 6 | . . . . . 2 . 4 . Highest Loss Streak 10 | . . . . . 3 1 10 1 To Critical Strikes . | . . . . . . . . . Average Backups 9 | 2 5 6 8 8 9 9 9 9 Power 1 | . 1 1 1 1 1 1 1 1 Propulsion . | . 2 2 2 1 . . . 1 Utility 3 | . . 1 1 2 3 3 4 4 Weapon 2 | . 1 2 3 3 3 3 2 3 Tool/Special . | . . . . . . . . . Unused Backups 24 | . . 1 1 2 7 3 4 6 Power 6 | . . . . 1 2 2 . 1 Propulsion 4 | . . . 1 1 1 . . 1 Utility 4 | . . . . . 1 . 1 2 Weapon 9 | . . 1 . . 3 1 2 2 Tool/Special 1 | . . . . . . . 1 . Average Slot Usage (%) 98 | . 85 92 100 96 99 99 97 98 Engine 8 | . 14 14 14 1 6 5 9 7 Core 3 | . . . . 7 2 3 4 7 Treads 21 | . . . 3 33 28 35 19 . Leg 8 | . 28 28 24 1 5 . 8 15 Wheel 1 | . . . . . . . 1 15 Device 9 | . . 7 14 13 9 6 10 7 Storage 8 | . 14 14 14 9 9 9 7 10 Processor 6 | . . . . 2 8 9 6 . Hackware 9 | . . . . 8 9 11 11 11 Energy Gun 1 | . . . . 2 4 . . . Ballistic Gun 15 | . 28 28 16 14 13 18 14 12 Peak Build Rating 47 | 6 6 7 11 34 39 40 45 47 Average Rating 31 | 4 6 6 8 29 28 34 37 37 On Entrance 18 | . 6 6 7 11 29 39 30 36 Avg Prop Armor Cover (%) 5 | . . . . 4 6 . 4 8 Naked Turns . | . . . . . . . . . Heaviest Build 45 | 14 14 15 21 26 34 34 42 45 Greatest Support 112 | 20 20 20 40 112 100 103 84 32 Greatest Overweight (x) 4 | 3 . . 1 . 1 . 4 1 Average Overweight (x) . | . . . . . . . . 1 Largest Inventory Capacity 10 | 8 8 8 8 10 10 10 10 10 Average Capacity 9 | 7 8 8 8 8 10 10 10 10 Most Carried 10 | 4 6 8 8 9 10 10 10 10 Average Carried 9 | 2 5 6 7 8 9 9 9 9 Final Capacity 10 | 8 8 8 8 10 10 10 10 10 Final Carried 10 | 4 6 8 8 9 10 10 10 10 Class Distribution -------------------- 59% | Scavenger-Mutant 21% | Mutant 15% | Hacker-Mutant 3% | Infiltrator-Mutant Dominant Class ---------------- Mutant | -10/Materials Mutant | -10/Mines Mutant | -10/Subcaves Scavenger-Mutant | -8/Materials Scavenger-Mutant | -8/Garrison Scavenger-Mutant | -8/Materials Scavenger-Mutant | -7/Factory Scavenger-Mutant | -7/Lower Caves Resources | -11 -10 -10 -10 -8 -8 -8 -7 -7 ----------- Run | Yrd Mat Min Sub Mat Gar Mat Fac Low Matter Collected 5554 | 231 77 79 368 461 1201 684 2364 89 Remotely 1278 | . . . . 94 180 . 1004 . Salvage Created 6393 | . 77 79 77 778 1163 1218 2923 78 Parts 356 | . 5 4 5 35 72 63 166 6 Haulers Intercepted 5 | . . . . 1 . 2 2 . Recyclers Shooed 1 | . . . . . . . 1 . Parts Field Recycled . | . . . . . . . . . Retrieved Matter . | . . . . . . . . . Parts Self-Destructed 17 | . . . 11 . . . . 6 Prevented 2 | . . . . . . . . 2 Parts Restored . | . . . . . . . . . Kills | -11 -10 -10 -10 -8 -8 -8 -7 -7 ------- Run | Yrd Mat Min Sub Mat Gar Mat Fac Low Combat Hostiles Destroyed 121 | . 4 2 3 11 29 21 48 3 Melee 2 | . . . 1 . . . 1 . Guns 117 | . 4 2 1 11 29 21 46 3 AOE 2 | . . . 1 . . . 1 . Classes Destroyed 16 | . 2 . 1 6 3 2 2 . Worker 2 | . . . . . . 1 1 . Builder 2 | . . . . . . . 2 . Hauler 5 | . . . . 1 . 2 2 . Recycler 12 | . . . . 2 . . 10 . Operator 3 | . . . . 1 . 2 . . Watcher 5 | . . . . . . 2 3 . Swarmer 26 | . 3 . . . 10 3 7 3 Grunt 48 | . 1 2 . 6 5 11 23 . Brawler 2 | . . . . 1 . 1 . . Duelist 3 | . . . . . 1 . 2 . Protector 1 | . . . . . . . 1 . Sentry 19 | . . . . 1 8 5 5 . Hunter 7 | . . . . 3 1 1 2 . Programmer 11 | . . . . . 3 . 8 . Behemoth 1 | . . . . . 1 . . . Subdweller 3 | . . . 3 . . . . . Best Kill Streak 8 | . 4 2 1 4 7 5 8 3 Combat Bots Only 7 | . 4 2 1 3 7 5 7 3 Max Kills in Single Turn 2 | . 1 1 1 1 2 1 2 2 Gunslinging 1 | . . . . . 1 . . . Exploded 1 | . . . 1 . . . 1 . Melee 1 | . . . 1 . . . 1 . Uniques/NPCs Destroyed . | . . . . . . . . . Combat | -11 -10 -10 -10 -8 -8 -8 -7 -7 -------- Run | Yrd Mat Min Sub Mat Gar Mat Fac Low Hostile Shots Fired 884 | . 16 9 14 55 264 102 395 29 Missed 267 | . 8 . 4 16 76 30 126 7 Hits 617 | . 8 9 10 39 188 72 269 22 Melee 29 | . . . . . . 1 28 . Projectile 588 | . 8 9 10 39 188 71 241 22 Critical Strikes 19 | . . . . 2 5 3 9 . Damage Taken 9336 | . 84 127 278 634 2495 1010 4321 387 Core 1139 | . 32 12 53 50 172 115 557 148 Absorbed by Shields . | . . . . . . . . . Regen/Repaired (Parts) 44 | . . . . . . . 44 . Core Remaining (%) 66 | 100 . . 61 . . 38 . . Volleys Fired 451 | . 10 5 20 47 118 63 179 9 Largest 2 | . 2 2 2 2 2 2 2 2 Hottest 88 | . 40 40 50 88 88 56 61 53 Shots Fired 846 | . 20 10 39 94 216 127 324 16 Gun 831 | . 20 10 25 93 216 127 324 16 Cannon . | . . . . . . . . . Launcher 15 | . . . 14 1 . . . . Special . | . . . . . . . . . Kinetic 766 | . 20 10 25 76 168 127 324 16 Thermal 44 | . . . . 17 27 . . . Explosive 15 | . . . 14 1 . . . . Electromagnetic 21 | . . . . . 21 . . . Robot Hit Streak 29 | . 9 5 6 18 29 27 24 3 Robot Miss Streak 7 | . 2 1 1 3 4 4 7 3 Penetration Max 1 | . . . . 1 1 1 1 . Secondary Targets 15 | . . . . 1 7 4 3 . Max Gunslinging Chain 1 | . . . . 1 1 1 1 . Shots Hit Robots 595 | . 14 8 12 69 141 92 251 8 Core Hits 340 | . 5 5 7 31 54 45 190 3 Critical Kills 5 | . . . . . . 1 4 . Critical Parts Destroyed 10 | . . . . 2 3 2 3 . Critical Strikes 16 | . . . . 2 4 3 7 . Destroy 16 | . . . . 2 4 3 7 . Melee Attacks 17 | . . . 1 1 12 . 3 . Impact 12 | . . . . . 12 . . . Slashing 2 | . . . 1 1 . . . . Piercing 3 | . . . . . . . 3 . Sneak Attacks 1 | . . . . . . . 1 . Combat Hostiles . | . . . . . . . . . Follow-up Attacks . | . . . . . . . . . Damage Inflicted 12853 | . 162 100 397 1057 2443 2047 6458 189 Guns 11682 | . 162 100 117 1010 2443 2047 5614 189 Cannons . | . . . . . . . . . Explosions 1079 | . . . 251 47 . . 781 . Melee 92 | . . . 29 . . . 63 . Ramming . | . . . . . . . . . Kinetic 11043 | . 162 100 117 838 1976 2047 5614 189 Thermal 610 | . . . . 172 438 . . . Explosive 1079 | . . . 251 47 . . 781 . Electromagnetic 29 | . . . . . 29 . . . Impact . | . . . . . . . . . Slashing 29 | . . . 29 . . . . . Piercing 63 | . . . . . . . 63 . Highest Corruption 7 | . . . . . 2 2 7 7 Average Corruption 2 | . . . . . 1 2 2 7 Corruption Purged . | . . . . . . . . . Corruption Blocked . | . . . . . . . . . Effects 110 | . . . . . 24 14 60 12 Message Errors 23 | . . . . . 3 6 10 4 Matter Fused 26 | . . . . . 9 2 13 2 Heat Flow Errors 14 | . . . . . 1 3 10 . Energy Discharges 14 | . . . . . 5 1 8 . Parts Rejected 4 | . . . . . . 1 2 1 Parts Fused 4 | . . . . . 1 . 3 . Data Loss (minor) 5 | . . . . . 2 . 2 1 Data Loss (major) 5 | . . . . . 1 . 3 1 Misfires 5 | . . . . . . 1 4 . Alerts 3 | . . . . . . . 2 1 Weapon Failures 7 | . . . . . 2 . 3 2 Overload Shots . | . . . . . . . . . Overflow Damage 41 | . . . . . . . 41 . Projectiles . | . . . . . . . . . Explosions 39 | . . . . . . . 39 . Melee 2 | . . . . . . . 2 . Knockbacks . | . . . . . . . . . Impact . | . . . . . . . . . Kinetic . | . . . . . . . . . Secondary . | . . . . . . . . . Self-Inflicted Damage 247 | . . . 81 . . . 166 . Shots 7 | . . . 4 . . . 3 . Rammed . | . . . . . . . . . Targets Rammed . | . . . . . . . . . Kicked . | . . . . . . . . . Crushed . | . . . . . . . . . Highest Temperature 322 | . . 8 . 22 150 270 322 32 Average Temperature 62 | . . 4 . 5 13 86 70 13 Received Heat Transfer 2595 | . 36 72 54 180 693 468 1068 24 Effects 2 | . . . . . . . 2 . Energy Bleed 1 | . . . . . . . 1 . Interference 1 | . . . . . . . 1 . Siege Activations . | . . . . . . . . . Martial Activations . | . . . . . . . . . Shielding Activations . | . . . . . . . . . Robots Disrupted . | . . . . . . . . . Combat Hostiles . | . . . . . . . . . Robots Corrupted . | . . . . . . . . . Combat Hostiles . | . . . . . . . . . Parts Fried . | . . . . . . . . . Impact Corruptions . | . . . . . . . . . Robots Melted . | . . . . . . . . . Combat Hostiles . | . . . . . . . . . Parts Melted 1 | . . . . . . . 1 . Heat Transferred 1332 | . . . . 407 925 . . . Parts Sabotaged . | . . . . . . . . . Parts Stolen . | . . . . . . . . . Parts Stripped . | . . . . . . . . . Power Chain Reactions . | . . . . . . . . . Alert | -11 -10 -10 -10 -8 -8 -8 -7 -7 ------- Run | Yrd Mat Min Sub Mat Gar Mat Fac Low Maximum Alert Level 4 | . . . . . 4 2 3 . Low Security (%) 36 | 100 100 100 . 100 6 . 44 . Level 1 11 | . . . . . 7 . 19 . Level 2 25 | . . . . . 35 99 7 . Level 3 24 | . . . . . 40 . 28 . Level 4 2 | . . . . . 9 . . . Level 5 . | . . . . . . . . . High Security . | . . . . . . . . . Max Security . | . . . . . . . . . Peak Influence 1229 | . 101 89 . 114 1229 656 909 . Initial 598 | . . 39 . . 63 598 228 . Average 426 | . 18 71 . 39 705 542 356 . Influence Increases 4295 | . 127 50 . 363 1306 654 1725 70 Destroy 0b10 Robot/C 2420 | . 80 40 . 220 620 420 980 60 Destroy 0b10 Robot/NC 160 | . . . . 20 10 35 95 . Destroy Leader 510 | . 10 10 . 72 20 128 260 10 Allied During Kill 22 | . . . . . 9 . 13 . Successful Hack 120 | . 6 . . . 12 35 67 . Disable Machine 225 | . . . . 30 15 15 165 . Anti-Garrison Action 350 | . . . . . 350 . . . Destroy Structure 263 | . 1 . . 6 120 6 130 . Lose Combat Pursuer 225 | . 30 . . 15 150 15 15 . Influence Decreases 3855 | . 26 82 69 265 175 1381 1321 536 Entered New Map 1375 | . . 62 37 . 35 631 274 336 Time Decay 1630 | . 26 20 32 230 . 440 692 190 Lost Part 285 | . . . . . 100 10 165 10 Lost Ally 80 | . . . . . 40 . 40 . Purge Threat 485 | . . . . 35 . 300 150 . Squads Dispatched 27 | . . . . 2 . 4 21 . Investigation 9 | . . . . . . 1 8 . Extermination 8 | . . . . . . . 8 . Reinforcement 7 | . . . . 1 . 2 4 . Assault 2 | . . . . . . 1 1 . Garrison 1 | . . . . 1 . . . . Intercept . | . . . . . . . . . Searches Triggered . | . . . . . . . . . Construction Impeded . | . . . . . . . . . Haulers Reinforced 2 | . . . . . . . 2 . Active Scanning Responses . | . . . . . . . . . Cargo Convoy Interrupts . | . . . . . . . . . Stealth | -11 -10 -10 -10 -8 -8 -8 -7 -7 --------- Run | Yrd Mat Min Sub Mat Gar Mat Fac Low Distress Signals 9 | . . . . 1 1 1 6 . Communications Jammed 7 | . . . . . . . 7 . Distress Signals 7 | . . . . . . . 7 . Times Spotted 175 | . 8 2 4 18 36 26 77 4 Peak Tracking Total 8 | . 5 2 2 3 8 5 8 3 Tactical Retreats 14 | . 1 . . 1 5 1 6 . ECM-based Alert Blocks 11 | . . . . . . . 11 . Traps | -11 -10 -10 -10 -8 -8 -8 -7 -7 ------- Run | Yrd Mat Min Sub Mat Gar Mat Fac Low Traps Triggered 9 | . . . . . 6 1 2 . Indirectly . | . . . . . . . . . Trap Hack Attempts . | . . . . . . . . . Triggered . | . . . . . . . . . Disarmed . | . . . . . . . . . Reprogrammed . | . . . . . . . . . Reused . | . . . . . . . . . Traps Extracted . | . . . . . . . . . Installed 1 | . . . 1 . . . . . Triggered . | . . . . . . . . . Machines | -11 -10 -10 -10 -8 -8 -8 -7 -7 ---------- Run | Yrd Mat Min Sub Mat Gar Mat Fac Low Machines Disabled 17 | . . . . 2 2 1 11 1 Max in Single Turn 3 | . . . . 1 1 1 3 1 Garrison Access 1 | . . . . . . . 1 . Garrison Relay 1 | . . . . . 1 . . . Machines Repaired . | . . . . . . . . . Machines Dismantled . | . . . . . . . . . Machines Sabotaged . | . . . . . . . . . Overloaded Fab Kills . | . . . . . . . . . Hacking | -11 -10 -10 -10 -8 -8 -8 -7 -7 --------- Run | Yrd Mat Min Sub Mat Gar Mat Fac Low Machines Accessed 35 | . 1 . . 4 3 7 20 . Terminals 20 | . 1 . . 2 3 5 9 . Fabricators 4 | . . . . . . . 4 . Repair Stations 2 | . . . . . . . 2 . Recycling Units 2 | . . . . . . . 2 . Scanalyzers 4 | . . . . 1 . 2 1 . Garrison Access 3 | . . . . 1 . . 2 . Total Hacks 91 | . 3 . . 11 7 27 43 . Successful 48 | . 1 . . 7 1 16 23 . Failed 43 | . 2 . . 4 6 11 20 . Catastrophic 9 | . . . . 1 2 2 4 . Database Lockouts . | . . . . . . . . . Manual 31 | . 3 . . 5 1 13 8 1 Terminals 49 | . 3 . . 5 7 15 19 . Fabricators 7 | . . . . . . . 7 . Repair Stations 5 | . . . . . . . 5 . Recycling Units 6 | . . . . . . . 6 . Scanalyzers 20 | . . . . 4 . 12 4 . Garrison Access 4 | . . . . 2 . . 2 . Terminal Hacks 18 | . 1 . . 2 1 7 7 . Robot Analysis 1 | . . . . . . . 1 . Open DSF 2 | . . . . . . . 2 . Level Access Points 1 | . . . . . . 1 . . Branch Access Points 1 | . . . . . . 1 . . Emergency Access Points 2 | . . . . . 1 . 1 . Terminal Index 4 | . 1 . . 1 . 1 1 . Unreport Threat 4 | . . . . 1 . 2 1 . Locate Traps 2 | . . . . . . 1 1 . Zone Layout 1 | . . . . . . 1 . . Fabricator Hacks 7 | . . . . . . . 7 . Load Schematic 3 | . . . . . . . 3 . Build 4 | . . . . . . . 4 . Repair Station Hacks 3 | . . . . . . . 3 . Scan Component 2 | . . . . . . . 2 . Repair 1 | . . . . . . . 1 . Recycling Unit Hacks 1 | . . . . . . . 1 . Report Inventory 1 | . . . . . . . 1 . Scanalyzer 14 | . . . . 4 . 9 1 . Insert Component 2 | . . . . . . 2 . . Analyze 5 | . . . . . . 5 . . Retrieve Study 7 | . . . . 4 . 2 1 . Garrison Access Hacks 2 | . . . . 1 . . 1 . Unlock Access 1 | . . . . 1 . . . . Seal Access 1 | . . . . . . . 1 . Unauthorized Hacks 3 | . . . . . . . 3 . Terminals . | . . . . . . . . . Fabricators . | . . . . . . . . . Repair Stations . | . . . . . . . . . Recycling Units 2 | . . . . . . . 2 . Reject 1 | . . . . . . . 1 . Recyclers 1 | . . . . . . . 1 . Scanalyzers . | . . . . . . . . . Garrison Access 1 | . . . . . . . 1 . Reprogram 1 | . . . . . . . 1 . Data Cores Recovered 1 | . . . . 1 . . . . Used . | . . . . . . . . . Hacking Detections 25 | . 1 . . 3 3 5 13 . Full Trace Events 9 | . . . . . 2 . 7 . Feedback Events . | . . . . . . . . . Feedback Blocked . | . . . . . . . . . Robot Schematics Acquired . | . . . . . . . . . Robots Built . | . . . . . . . . . Authchips . | . . . . . . . . . Time . | . . . . . . . . . Total Robot Build Rating . | . . . . . . . . . Part Schematics Acquired 2 | . . . . . . 2 . . Parts Built 8 | . . . . . . . 8 . Authchips . | . . . . . . . . . Time 332 | . . . . . . . 332 . Total Part Build Rating 40 | . . . . . . . 40 . Part Studies Acquired 7 | . . . . 4 . 2 1 . Parts Repaired 1 | . . . . . . . 1 . Time 38 | . . . . . . . 38 . Parts Recycled . | . . . . . . . . . Recycled Matter . | . . . . . . . . . Retrieved Matter . | . . . . . . . . . Retrieved Components . | . . . . . . . . . Parts Scanalyzed 2 | . . . . . . 2 . . Part Schematics Acquired 2 | . . . . . . 2 . . Parts Damaged 1 | . . . . . . 1 . . Bothacking | -11 -10 -10 -10 -8 -8 -8 -7 -7 ------------ Run | Yrd Mat Min Sub Mat Gar Mat Fac Low Used RIF Installer 1 | . . . . . 1 . . . Robots Hacked . | . . . . . . . . . Non-combat . | . . . . . . . . . Combat . | . . . . . . . . . Robot Hacks Applied . | . . . . . . . . . Relay Couplers Released 3 | . . . . . 3 . . . Machine Destruction 3 | . . . . . 3 . . . Fabnet Peak Effective % . | . . . . . . . . . Robots Rewired . | . . . . . . . . . Allies Hacked . | . . . . . . . . . Hacks Repelled . | . . . . . . . . . Allies | -11 -10 -10 -10 -8 -8 -8 -7 -7 -------- Run | Yrd Mat Min Sub Mat Gar Mat Fac Low Total Allies 5 | . . . . . 2 . 3 . Largest Group 3 | . . . . . 2 . 3 . Highest-Rated Group 51 | . . . . . 51 . 48 . Highest-Rated Ally 31 | . . . . . 31 . 16 . Total Orders . | . . . . . . . . . Ally Attacks 39 | . . . . . 10 . 29 . Total Damage 593 | . . . . . 278 . 315 . Kills 6 | . . . . . 4 . 2 . Allies Corrupted 1 | . . . . . . . 1 . Allies Melted . | . . . . . . . . . Intel | -11 -10 -10 -10 -8 -8 -8 -7 -7 ------- Run | Yrd Mat Min Sub Mat Gar Mat Fac Low Active Infowar (turns) 4437 | . . . . 511 . . 3529 397 Sensors 1331 | . . . . 511 . . 820 . Jamming 1163 | . . . . . . . 960 203 ECM 2696 | . . . . . . . 2466 230 Robot Analysis Total 1 | . . . . . . . 1 . Derelict Logs Recovered . | . . . . . . . . . Drone Launches . | . . . . . . . . . Drone Recoveries . | . . . . . . . . . Exploration | -11 -10 -10 -10 -8 -8 -8 -7 -7 ------------- Run | Yrd Mat Min Sub Mat Gar Mat Fac Low Turns Passed 9272 | 69 218 47 677 668 1988 1097 4111 397 Spaces Moved 4675 | 42 139 23 475 263 933 502 1994 304 Core 13 | 12 . . . . . . 1 . Treads 3093 | . . . 44 263 836 502 1448 . Legs 1030 | 30 139 23 431 . 97 . 310 . Wheels 539 | . . . . . . . 235 304 Hover . | . . . . . . . . . Flight . | . . . . . . . . . Fastest Speed 50 | 50 120 120 120 160 120 156 100 115 Average Speed 145 | 134 120 120 124 160 158 157 147 115 Slowest Speed 250 | 200 120 120 190 160 200 160 250 115 Overloaded Moves . | . . . . . . . . . Propulsion Burnouts . | . . . . . . . . . Robots Hopped . | . . . . . . . . . Potential Cave-ins . | . . . . . . . . . Cave-ins Triggered . | . . . . . . . . . Exploration Rate (%) 33 | 4 24 6 26 19 90 53 38 45 Regions Visited 8 Branch Regions 3 Pre-discovered Areas . | . . . . . . . . . Known Exits Taken 2 | . . . . 1 . 1 . . Unknown Exits Taken 5 | 1 1 1 1 . . . 1 . Scrap Searched 5 | . . . 4 . . . . 1 Spaces Dug 7 | . . . 6 . . . 1 . Terrain Destroyed 213 | . . . 73 3 . . 137 . Melee 1 | . . . . . . . 1 . Projectile 11 | . . . . . . . 11 . AOE 201 | . . . 73 3 . . 125 . Terrain Rammed . | . . . . . . . . . Walls Destroyed . | . . . . . . . . . Machines Disabled . | . . . . . . . . . Actions | -11 -10 -10 -10 -8 -8 -8 -7 -7 --------- Run | Yrd Mat Min Sub Mat Gar Mat Fac Low Total 6271 | 51 170 32 520 418 1214 689 2841 336 Wait 688 | . 20 . 13 61 33 79 475 7 Move 4668 | 41 138 22 474 263 932 501 1993 304 Hop . | . . . . . . . . . Pick Up 78 | 3 2 3 2 8 18 11 28 3 Fast Attach 90 | 6 . 1 . 7 21 8 44 3 Attach 29 | . . . . . 6 1 18 4 Detach 22 | . . . . 1 3 2 14 2 Swap 96 | 1 . . 7 14 33 6 35 . Drop 131 | . . 1 2 16 38 18 52 4 Fire 451 | . 10 5 20 47 118 63 179 9 Melee 17 | . . . 1 1 12 . 3 . Ram . | . . . . . . . . . Kick . | . . . . . . . . . Crush . | . . . . . . . . . Escape Stasis . | . . . . . . . . . Rewire . | . . . . . . . . . Trap 1 | . . . 1 . . . . . Miscellaneous . | . . . . . . . . . Route ------- -11/Scrapyard -10/Materials -10/Mines -10/Subcaves (discovered 2 exits: *Mat / [*Scr]) -8/Materials -8/Garrison (discovered 3 exits: *Mat x3) -8/Materials (discovered 3 exits: *Fac x3) -7/Factory (discovered 4 exits: [*Fac x2] / [*Sto] / *Low) -7/Lower Caves History --------- Turn | Location | Event 22 | -11/Scrapyard | Discovered new exit (range 15) 70 | -11/Scrapyard | Entered Materials 170 | -10/Materials | Discovered new exit (range 14) 288 | -10/Materials | Entered Mines 323 | -10/Mines | Discovered new exit (range 10) 335 | -10/Mines | Entered Subcaves 336 | -10/Subcaves | Build established: Mutant 336 | -10/Subcaves | Approached by a straggling Scientist 337 | -10/Subcaves | Shifting Twisted Machinery released Sub. Shrapnel Launcher 447 | -10/Subcaves | Shifting Twisted Machinery released Shrapnel Trap 622 | -10/Subcaves | Shifting Twisted Machinery released Spk. Treads 627 | -10/Subcaves | Shifting Twisted Machinery released Sub. Beam Cannon 927 | -10/Subcaves | Disturbed a concealed Subdweller 969 | -10/Subcaves | Discovered new exit (range 12) 1012 | -10/Subcaves | Entered Materials 1012 | -8/Materials | Evolved 4 slots: Propulsion x2, Utility x2 1523 | -8/Materials | Build established: Scavenger-Mutant 1548 | -8/Materials | Garrison activated, responded to threat 1677 | -8/Materials | Identified exit to Garrison 1680 | -8/Materials | Entered Garrison 1926 | -8/Garrison | Triggered checkpoint 1987 | -8/Garrison | Destroyed 7 combat bots 2076 | -8/Garrison | Triggered checkpoint 2126 | -8/Garrison | Lost 3 parts (2n1w) 2236 | -8/Garrison | Lost 3 parts (2n1w) 2308 | -8/Garrison | Discovered new exit (range 5) 2373 | -8/Garrison | Installed Relay Interface Framework 2612 | -8/Garrison | Spotted B-75 Beast 2642 | -8/Garrison | Destroyed B-75 Beast 2665 | -8/Garrison | Garrison Relay disabled 2811 | -8/Garrison | Rescued a captive Derelict 2812 | -8/Garrison | Rescued a captive Derelict 2993 | -8/Garrison | Triggered checkpoint 3076 | -8/Garrison | Discovered new exit (range 10) 3290 | -8/Garrison | Triggered checkpoint 3448 | -8/Garrison | Discovered new exit (range 15) 3668 | -8/Garrison | Entered Materials 4134 | -8/Materials | Core integrity fell below 50% 4468 | -8/Materials | First assault squad dispatched 4595 | -8/Materials | Identified exit to Factory 4765 | -8/Materials | Entered Factory 4765 | -7/Factory | Evolved 2 slots: Power x1, Utility x1 5091 | -7/Factory | Discovered new exit (range 16) 5100 | -7/Factory | Identified exit to DSF 5816 | -7/Factory | Fabricated KE Penetrator (x2) 5938 | -7/Factory | Repaired Adv. Treads+ 6057 | -7/Factory | Discovered new exit (range 5) 6348 | -7/Factory | Discovered new exit (range 9) 6381 | -7/Factory | Build established: Mutant 6500 | -7/Factory | Fabricated Fission Core? 6517 | -7/Factory | Destroyed 7 combat bots 6966 | -7/Factory | Fabricated Gauss Rifle? 7167 | -7/Factory | Build established: Hacker-Mutant 7318 | -7/Factory | Discovered new exit (range 6) 8165 | -7/Factory | Build established: Scavenger-Mutant 8245 | -7/Factory | Fabricated Fission Core (x2) 8365 | -7/Factory | First assault squad dispatched 8442 | -7/Factory | Core integrity fell below 50% 8514 | -7/Factory | Lost 10 parts (3p5n2w) 8876 | -7/Factory | Entered Lower Caves 9101 | -7/Lower Caves | Core integrity fell below 20% 9130 | -7/Lower Caves | Acquired the password to a Derelict Tinkerer's latest research 9163 | -7/Lower Caves | Found Prototype Special Weapon 9177 | -7/Lower Caves | Identified Molecular Deconstructor 9250 | -7/Lower Caves | Spotted B-75 Beast 9273 | -7/Lower Caves | Destroyed by B-75 Beast with Heavy Plasma Cannon Last Messages --------------- 09177_ System corrupted: Matter fused (-8). 09177_ Dropped Minigun. 09177_ Identified Molecular Deconstructor. 09179_ Acquired Minigun. 09181_ Acquired Prc. Assault Rifle. 09193_ System corrupted: Substantial component data lost. 09216_ Dropped Minigun. 09217_ Dropped Prc. Assault Rifle. 09218_ Acquired Minigun. 09220_ Acquired Prc. Assault Rifle. 09231_ System corrupted: IFF burst signal emitted. 09235_ PUBLIC SERVICE ANNOUNCEMENT: Unaware incursion detected. Likely classification: Search and Destroy. And maybe Retrieve. Something like that, yeah. 09247_ 6O-KQZ(S) destroyed. 09254_ |AA/QGO ZAZW:&0MUPS 6